Workbook

Sheet Total
C1: من عمود H | D1: من عمود D | E1: من عمود C
A2: Numb | B2: Guıde Name | C2: Excursion | D2: Shopping | E2: Bonus | F2: Total Comm
A3: 1 | B3: Ahmed Omar | C3: =SUMPRODUCT(SUMIF(INDIRECT("'"&C$2&"'!"&"B2:B1000"),$B3,INDIRECT("'"&C$2&"'!"&"H2:H1000"))) -> 3498.648 | D3: =SUMPRODUCT(SUMIF(INDIRECT("'"&D$2&"'!"&"B2:B1000"),$B3,INDIRECT("'"&D$2&"'!"&"D2:D1000"))) -> 669.39 | E3: =SUMPRODUCT(SUMIF(INDIRECT("'"&E$2&"'!"&"B2:B1000"),$B3,INDIRECT("'"&E$2&"'!"&"C2:C1000"))) -> 1147.999399 | F3: =SUM(C3:E3) -> 5316.037399
A4: 2 | B4: Mohamed Said | C4: =SUMPRODUCT(SUMIF(INDIRECT("'"&C$2&"'!"&"B2:B1000"),$B4,INDIRECT("'"&C$2&"'!"&"H2:H1000"))) -> 1225.791545 | D4: =SUMPRODUCT(SUMIF(INDIRECT("'"&D$2&"'!"&"B2:B1000"),$B4,INDIRECT("'"&D$2&"'!"&"D2:D1000"))) -> 302.08 | E4: =SUMPRODUCT(SUMIF(INDIRECT("'"&E$2&"'!"&"B2:B1000"),$B4,INDIRECT("'"&E$2&"'!"&"C2:C1000"))) -> 532.2018018 | F4: =SUM(C4:E4) -> 2060.073346
A5: 3 | B5: Israa Abdel Latif | C5: 1074.241545 | D5: 151.96 | E5: 321.5831832 | F5: 1547.784728
A6: 4 | B6: Asmaa Reda | C6: 676.451655 | D6: 37.64 | E6: 182.2342342 | F6: 896.3258893
A7: 5 | B7: Shawky Said | C7: 834.4115446 | D7: 39.48 | E7: 325.003003 | F7: 1198.894548
A8: 6 | B8: Selim Fathy | C8: 585.8608075 | D8: 6.1 | E8: 222.578979 | F8: 814.5397864
A9: 7 | B9: Naser Abdalla | C9: 823.1633033 | D9: 300.8 | E9: 315.2048048 | F9: 1439.168108
A10: 8 | B10: Fawzy Metwaly | C10: 704.9298729 | D10: 197.5 | E10: 38.19339339 | F10: 940.6232663
A11: 9 | B11: Amar Sherif | C11: 596.1548679 | D11: 48.3 | E11: 202.2114114 | F11: 846.6662793
A12: 10 | B12: Dina Hany | C12: 174.0166767 | D12: 142.78 | E12: 203.0738739 | F12: 519.8705506
A13: 11 | B13: Waleed Moustafa | C13: 899.5615446 | D13: 53.66 | E13: 324.0792793 | F13: 1277.300824
A14: 12 | B14: Wael Murad | C14: 881.4915446 | D14: 98.68 | E14: 131.4318318 | F14: 1111.603376
A15: 13 | B15: Khaleed Medhat | C15: 979.0515446 | D15: 85.6 | E15: 212.9645646 | F15: 1277.616109
A16: 14 | B16: Osama El Sayed | C16: 657.2165998 | D16: 49.46 | E16: 43.6984985 | F16: 750.3750983
A17: 15 | B17: Ziad Habib | C17: 820.2315446 | D17: 13.26 | E17: 53.12192192 | F17: 886.6134665
A18: 16 | B18: Farida Farouk | C18: 202.2266767 | D18: 9.28 | E18: 132.9201201 | F18: 344.4267969
A19: 17 | B19: Mikail Ibrahim | C19: 172.7966767 | D19: 39.48 | E19: 111.4414414 | F19: 323.7181182
A20: 18 | B20: Bishoy Mounir | C20: 834.4115446 | D20: 326.28 | E20: 165.5855856 | F20: 1326.27713
A21: 19 | B21: Samy Ahmed | C21: 685.2415446 | D21: 157.96 | E21: 221.8822823 | F21: 1065.083827
A22: 20 | B22: Samir Ezat | C22: 763.7015446 | D22: 225.18 | E22: 148.6954955 | F22: 763.7015446
C24: =SUM(C3:C22) -> 17089.60058 | D24: =SUM(D3:D22) -> 2954.87 | E24: 5036.105105 | F24: =SUM($F$3:$F$23) -> 24706.70019

Sheet Excursion
A1: Numb | B1: Guıde Name | C1: Sales | D1: DDDD | E1: EEEE | F1: GGGGG | G1: Total Comm | H1: Real Comm
A2: 1 | B2: Ahmed Omar | C2: 0 | D2: 0 | E2: 0 | F2: 0 | G2: 3498.648 | H2: 3498.648
A3: 2 | B3: Mohamed Said | C3: 38827.5 | D3: 1941.375 | E3: 449.2415446 | F3: 776.55 | G3: 1225.791545 | H3: 1225.791545 | J3: Comm from 01.05 till 15.05
A4: 3 | B4: Israa Abdel Latif | C4: 31250 | D4: 1562.5 | E4: 449.2415446 | F4: 625 | G4: 1074.241545 | H4: 1074.241545 | J4: Comm from 16.05 till 31.05
A5: 4 | B5: Asmaa Reda | C5: 17833 | D5: 891.65 | E5: 319.791655 | F5: 356.66 | G5: 676.451655 | H5: 676.451655
A6: 5 | B6: Shawky Said | C6: 19258.5 | D6: 962.925 | E6: 449.2415446 | F6: 385.17 | G6: 834.4115446 | H6: 834.4115446
A7: 6 | B7: Selim Fathy | C7: 15530.5 | D7: 776.525 | E7: 275.2508075 | F7: 310.61 | G7: 585.8608075 | H7: 585.8608075
A8: 7 | B8: Naser Abdalla | C8: 24089.83333 | D8: 1204.491667 | E8: 341.3666366 | F8: 481.7966667 | G8: 823.1633033 | H8: 823.1633033
A9: 8 | B9: Fawzy Metwaly | C9: 15550.83333 | D9: 777.5416667 | E9: 393.9132062 | F9: 311.0166667 | G9: 704.9298729 | H9: 704.9298729
A10: 9 | B10: Amar Sherif | C10: 12878.5 | D10: 643.925 | E10: 338.5848679 | F10: 257.57 | G10: 596.1548679 | H10: 596.1548679
A11: 10 | B11: Dina Hany | C11: 3168 | D11: 158.4 | E11: 110.6566767 | F11: 63.36 | G11: 174.0166767 | H11: 174.0166767
A12: 11 | B12: Waleed Moustafa | C12: 22516 | D12: 1125.8 | E12: 449.2415446 | F12: 450.32 | G12: 899.5615446 | H12: 899.5615446
A13: 12 | B13: Wael Murad | C13: 21612.5 | D13: 1080.625 | E13: 449.2415446 | F13: 432.25 | G13: 881.4915446 | H13: 881.4915446
A14: 13 | B14: Khaleed Medhat | C14: 26490.5 | D14: 1324.525 | E14: 449.2415446 | F14: 529.81 | G14: 979.0515446 | H14: 979.0515446
A15: 14 | B15: Osama El Sayed | C15: 13635 | D15: 681.75 | E15: 384.5165998 | F15: 272.7 | G15: 657.2165998 | H15: 657.2165998
A16: 15 | B16: Ziad Habib | C16: 18549.5 | D16: 927.475 | E16: 449.2415446 | F16: 370.99 | G16: 820.2315446 | H16: 820.2315446
A17: 16 | B17: Farida Farouk | C17: 4578.5 | D17: 228.925 | E17: 110.6566767 | F17: 91.57 | G17: 202.2266767 | H17: 202.2266767
A18: 17 | B18: Mikail Ibrahim | C18: 3107 | D18: 155.35 | E18: 110.6566767 | F18: 62.14 | G18: 172.7966767 | H18: 172.7966767
A19: 18 | B19: Bishoy Mounir | C19: 19258.5 | D19: 962.925 | E19: 449.2415446 | F19: 385.17 | G19: 834.4115446 | H19: 834.4115446
A20: 19 | B20: Samy Ahmed | C20: 11800 | D20: 590 | E20: 449.2415446 | F20: 236 | G20: 685.2415446 | H20: 685.2415446
A21: 20 | B21: Samir Ezat | C21: 15723 | D21: 786.15 | E21: 449.2415446 | F21: 314.46 | G21: 763.7015446 | H21: 763.7015446
B23: TOTAL | C23: =SUM(C2:C22) -> 335657.1667 | D23: 16782.85833 | E23: 6877.809249 | F23: 6713.143333 | G23: 17089.60058 | H23: 17089.60058
H25: kontrol

Sheet Sheet1

Sheet Shopping
A2: HRG. Shop Commission for May.2019
A3: Serial | B3: Guide Name | C3: Total Sales | D3: Real Comission | E3: Signature | F3: Remarks
A4: 1 | B4: Ahmed Omar | C4: 0 | D4: 669.39
A5: 2 | B5: Mohamed Said | C5: 7552 | D5: 302.08
A6: 3 | B6: Israa Abdel Latif | C6: 3799 | D6: 151.96
A7: 4 | B7: Asmaa Reda | C7: 941 | D7: 37.64
A8: 5 | B8: Shawky Said | C8: 987 | D8: 39.48
A9: 6 | B9: Selim Fathy | C9: 152.5 | D9: 6.1
A10: 7 | B10: Naser Abdalla | C10: 7520 | D10: 300.8
A11: 8 | B11: Fawzy Metwaly | C11: 4937.5 | D11: 197.5
A12: 9 | B12: Amar Sherif | C12: 1207.5 | D12: 48.3
A13: 10 | B13: Dina Hany | C13: 3569.5 | D13: 142.78
A14: 11 | B14: Waleed Moustafa | C14: 1341.5 | D14: 53.66
A15: 12 | B15: Wael Murad | C15: 2467 | D15: 98.68
A16: 13 | B16: Khaleed Medhat | C16: 2140 | D16: 85.6
A17: 14 | B17: Osama El Sayed | C17: 1236.5 | D17: 49.46
A18: 15 | B18: Ziad Habib | C18: 331.5 | D18: 13.26
A19: 16 | B19: Farida Farouk | C19: 232 | D19: 9.28
A20: 17 | B20: Mikail Ibrahim | C20: 987 | D20: 39.48
A21: 18 | B21: Bishoy Mounir | C21: 8157 | D21: 326.28
A22: 19 | B22: Samy Ahmed | C22: 3949 | D22: 157.96
A23: 20 | B23: Samir Ezat | C23: 5629.5 | D23: 225.18
B25: Total | C25: =SUM(C4:C23) -> 57137 | D25: =SUM(D4:D23) -> 2954.87

Sheet Bonus
A1: BONUS For The Guides From 01.05 till 31.05.2019
A2: N | B2: Name,Surname | C2: Real Bonus
C3: Amount $
A4: 6 | B4: Ahmed Omar | C4: 1147.999399
A5: 8 | B5: Mohamed Said | C5: 532.2018018
A6: 9 | B6: Israa Abdel Latif | C6: 321.5831832
A7: 10 | B7: Asmaa Reda | C7: 182.2342342
A8: 11 | B8: Shawky Said | C8: 325.003003
A9: 12 | B9: Selim Fathy | C9: 222.578979
A10: 13 | B10: Naser Abdalla | C10: 315.2048048
A11: 16 | B11: Fawzy Metwaly | C11: 38.19339339
A12: 17 | B12: Amar Sherif | C12: 202.2114114
A13: 18 | B13: Dina Hany | C13: 203.0738739
A14: 19 | B14: Waleed Moustafa | C14: 324.0792793
A15: 20 | B15: Wael Murad | C15: 131.4318318
A16: 21 | B16: Khaleed Medhat | C16: 212.9645646
A17: 22 | B17: Osama El Sayed | C17: 43.6984985
A18: 23 | B18: Ziad Habib | C18: 53.12192192
A19: 25 | B19: Farida Farouk | C19: 132.9201201
A20: 26 | B20: Mikail Ibrahim | C20: 111.4414414
A21: 27 | B21: Bishoy Mounir | C21: 165.5855856
A22: 28 | B22: Samy Ahmed | C22: 221.8822823
A23: 29 | B23: Samir Ezat | C23: 148.6954955
A24: Total | C24: =SUM(C4:C23) -> 5036.105105
